bitfinex-derivatives/quotes_SOLF0:USTF0_20260218
["timestamp","ask_amount","ask_price","bid_price","bid_amount"]
[1771435848802,12.9108355,82.359,82.311,9.99808054]
[1771435849902,12.9108355,82.359,82.32,3.02015457]
[1771435850102,12.9108355,82.359,82.32,13.15199952]
[1771435850298,12.9108355,82.359,82.321,10.13184495]
[1771435851206,3.02015457,82.37,82.327,10.9368]
[1771435851405,10.9309,82.372,82.327,10.17926188]
[1771435852004,12.9108355,82.371,82.334,10.25096025]
[1771435853100,3.02015457,82.38,82.334,10.25096025]
[1771435853301,15.93099007,82.38,82.334,10.25096025]
[1771435853707,15.93099007,82.38,82.338,10.9354]
[1771435853901,15.93099007,82.38,82.334,10.25096025]
[1771435853902,12.9108355,82.377,82.334,10.25096025]
[1771435854210,12.9108355,82.359,82.31,13.66806011]
[1771435854701,12.9108355,82.359,82.311,10.64790554]
[1771435855711,12.9108355,82.358,82.316,10.9383]
[1771435858600,13.30874083,82.35,82.311,10.64790554]
[1771435860814,13.30874083,82.35,82.319,10.9379]
[1771435862113,13.30874083,82.35,82.311,10.64790554]
[1771435862114,16.3288954,82.35,82.312,10.9388]
[1771435862408,13.30874083,82.339,82.298,10.94887135]
[1771435862712,13.30874083,82.377,82.331,10.98869384]
[1771435864812,10.9305,82.376,82.338,10.9354]
[1771435866314,3.02015457,82.38,82.343,11.03655753]
[1771435866515,16.3288954,82.39,82.343,11.03655753]
[1771435867315,3.02015457,82.38,82.343,11.03655753]
[1771435868507,16.3288954,82.38,82.343,11.03655753]
[1771435868710,16.3288954,82.38,82.345,10.9344]
[1771435870112,13.30874083,82.38,82.345,10.9344]
[1771435871915,21.8504,82.416,82.329,22.58233059]
[1771435871916,10.9275,82.398,82.35,3.02015457]
[1771435872111,10.9275,82.398,82.361,11.03150533]
[1771435872616,13.30874083,82.402,82.361,11.03150533]
[1771435872817,13.30874083,82.414,82.361,11.03150533]
[1771435873504,13.30874083,82.409,82.361,11.03150533]
[1771435874716,24.23494083,82.408,82.367,10.9315]
[1771435874913,24.23494083,82.408,82.348,76.48]
[1771435874914,12.59282944,82.42,82.371,11.15895204]
[1771435875112,12.59282944,82.42,82.38,3.02015457]
[1771435875305,3.02015457,82.43,82.381,11.15895204]
[1771435875511,12.59282944,82.399,82.354,11.15895204]
[1771435876007,12.59282944,82.399,82.363,10.9321]
[1771435876211,3.02015457,82.41,82.363,10.9321]
[1771435876212,3.02015457,82.41,82.364,11.22103057]
[1771435876717,10.926,82.409,82.366,10.9316]
[1771435877019,10.926,82.409,82.367,11.25482636]
[1771435877220,12.59282944,82.409,82.371,11.25549397]
[1771435877606,15.61298401,82.42,82.371,11.25549397]
[1771435877908,12.59282944,82.42,82.381,11.28862606]
[1771435878108,5.0,82.435,82.367,11.56546225]
[1771435878109,12.59282944,82.409,82.367,11.56546225]
[1771435879714,12.59282944,82.409,82.372,10.9308]
[1771435880018,10.925,82.417,82.373,11.63143744]
[1771435880414,12.59282944,82.421,82.385,10.9292]
[1771435880923,12.59282944,82.421,82.38,3.02015457]
[1771435881121,12.59282944,82.421,82.373,11.63143744]
[1771435881514,12.59282944,82.421,82.382,10.9295]
[1771435885325,12.59282944,82.421,82.388,10.9288]
[1771435885518,12.59282944,82.434,82.39,3.02015457]
[1771435885817,12.59282944,82.434,82.391,12.02344726]
[1771435886621,12.59282944,82.419,82.37,3.02015457]
[1771435887723,12.59282944,82.418,82.374,10.9305]
[1771435888515,12.59282944,82.43,82.39,3.02015457]
[1771435889322,12.59282944,82.409,82.36,3.02015457]
[1771435889516,12.59282944,82.409,82.37,3.02015457]
[1771435889720,3.02015457,82.43,82.38,3.02015457]
[1771435889926,5.0,82.435,82.373,23.09233192]
[1771435889927,12.59282944,82.418,82.373,23.09233192]
[1771435890423,12.59282944,82.418,82.373,12.16153192]
[1771435890625,12.59282944,82.416,82.373,12.16153192]
[1771435891125,12.59282944,82.416,82.36,15.12469603]
[1771435891326,12.59282944,82.416,82.361,12.1091352]
[1771435891720,12.59282944,82.413,82.374,10.9305]
[1771435892529,12.59282944,82.399,82.35,3.01556083]
[1771435893728,12.59282944,82.397,82.358,10.9328]
[1771435899520,12.59282944,82.397,82.358,23.2678124]
[1771435899720,12.59282944,82.409,82.361,12.3350124]
[1771435900435,12.59282944,82.408,82.35,3.01556083]
[1771435900635,12.59282944,82.399,82.35,3.01556083]
[1771435900938,12.59282944,82.399,82.35,15.40565885]
[1771435901427,12.59282944,82.398,82.359,10.9326]
[1771435902427,12.59282944,82.398,82.366,10.9317]
[1771435902625,10.926,82.409,82.366,10.9317]
[1771435902828,15.60839027,82.42,82.371,12.47339495]
[1771435903822,12.59282944,82.418,82.376,10.9304]
[1771435904224,12.59282944,82.418,82.371,12.47339495]
[1771435904225,12.59282944,82.418,82.382,10.9295]
[1771435904428,10.9233,82.43,82.381,12.47466893]
[1771435904636,12.59282944,82.432,82.381,12.47466893]
[1771435905538,12.59282944,82.432,82.394,10.9279]
[1771435905738,5.0,82.435,82.395,12.50931117]
[1771435905939,5.0,82.435,82.347,30.10082113]
[1771435905940,0.0001,82.435,82.411,12.53321572]
[1771435906335,0.0001,82.435,82.377,12.16]
[1771435906336,14.01182489,82.473,82.43,3.01556083]
[1771435906639,14.01182489,82.473,82.431,12.60392528]
[1771435906938,3.01556083,82.49,82.44,3.01556083]
[1771435906939,14.01182489,82.487,82.44,3.01556083]
[1771435907742,14.01182489,82.487,82.442,10.9215]
[1771435907939,14.01182489,82.509,82.461,12.65176693]
[1771435908136,14.01182489,82.489,82.446,12.71343897]
[1771435908336,14.01182489,82.489,82.44,3.01556083]
[1771435908636,14.01182489,82.479,82.43,15.75207911]
[1771435909234,14.01182489,82.479,82.43,12.73651828]
[1771435909432,14.01182489,82.479,82.43,15.75207911]
[1771435910742,14.01182489,82.479,82.431,12.48880352]
[1771435910936,14.01182489,82.479,82.42,3.01556083]
[1771435911140,14.01182489,82.479,82.42,15.50502692]
[1771435911832,10.918,82.47,82.42,15.50502692]
[1771435912034,14.01182489,82.469,82.42,15.50502692]
[1771435912634,21.822,82.523,82.375,26.95963429]
[1771435912635,14.01182489,82.459,82.41,3.01556083]
[1771435912835,14.01182489,82.449,82.39,15.37006555]
[1771435913043,14.01182489,82.449,82.4,3.01556083]
[1771435913642,14.01182489,82.449,82.403,10.9267]
[1771435914342,14.01182489,82.449,82.4,3.01556083]
[1771435915439,14.01182489,82.443,82.394,10.9279]
[1771435915638,14.01182489,82.443,82.39,15.37006555]
[1771435915846,3.01556083,82.43,82.39,12.35450472]
[1771435916147,17.02738572,82.43,82.39,12.35450472]
[1771435917142,17.02738572,82.43,82.386,10.929]
[1771435918048,14.01182489,82.43,82.386,10.929]
[1771435919644,10.9212,82.446,82.395,12.44611761]
[1771435920045,13.56065229,82.445,82.395,12.44611761]
[1771435920242,13.56065229,82.445,82.406,10.9263]
[1771435920443,13.56065229,82.459,82.41,3.01556083]
[1771435920646,13.56065229,82.459,82.41,15.48735521]
[1771435921649,3.01556083,82.47,82.421,12.49179795]
[1771435921841,13.56065229,82.47,82.421,12.49179795]
[1771435922040,13.56065229,82.459,82.4,12.46109986]
[1771435922240,13.56065229,82.459,82.383,12.46109986]
[1771435923251,13.56065229,82.456,82.408,10.9261]
[1771435925947,13.56065229,82.456,82.414,10.9252]
[1771435926149,13.56065229,82.456,82.408,12.63957306]
[1771435926342,10.9186,82.465,82.408,12.63957306]
[1771435926546,13.56065229,82.465,82.414,12.63695909]
[1771435926748,8.07003107,82.49,82.39,8.07003107]
[1771435926749,13.56065229,82.449,82.39,12.65530963]
[1771435926946,13.56065229,82.449,82.39,73.65530963]
[1771435927340,13.56065229,82.449,82.39,12.65530963]
[1771435927638,13.56065229,82.436,82.39,10.9285]
[1771435927846,13.56065229,82.459,82.377,12.67385846]
[1771435928047,10.9214,82.444,82.395,12.67055782]
[1771435928248,24.48205229,82.444,82.395,12.67055782]
[1771435928649,24.48205229,82.444,82.396,10.9277]
[1771435929547,24.48205229,82.444,82.403,10.9268]
[1771435929848,10.9231,82.431,82.382,10.9296]
[1771435930059,13.56065229,82.43,82.38,12.70606043]
[1771435930349,13.56065229,82.43,82.375,5.09863429]
[1771435930959,13.56065229,82.421,82.375,5.09863429]
[1771435931656,13.56065229,82.414,82.375,5.09863429]
[1771435932056,13.56065229,82.414,82.375,3.429e-05]
[1771435932947,13.56065229,82.402,82.375,3.429e-05]
[1771435933551,13.56065229,82.395,82.375,3.429e-05]
[1771435934457,10.9281,82.394,82.375,3.429e-05]
[1771435934753,13.56065229,82.394,82.375,3.429e-05]
[1771435935459,10.9288,82.389,82.375,3.429e-05]
[1771435939465,13.56065229,82.394,82.375,3.429e-05]
[1771435939659,13.51831985,82.423,82.375,3.429e-05]
[1771435940458,15.09122008,82.493,82.375,3.429e-05]
[1771435940459,13.51831985,82.408,82.375,3.429e-05]
[1771435940961,10.9273,82.399,82.375,3.429e-05]
[1771435941767,13.51831985,82.398,82.375,3.429e-05]
[1771435941962,3.01799331,82.39,82.375,3.429e-05]
[1771435942359,10.9277,82.397,82.375,3.429e-05]
[1771435942862,13.51831985,82.398,82.375,3.429e-05]
[1771435945072,13.51831985,82.389,82.375,3.429e-05]
[1771435948867,10.9289,82.388,82.375,3.429e-05]
[1771435950768,36.41,82.438,82.375,3.429e-05]
[1771435950769,13.51831985,82.402,82.375,3.429e-05]
[1771435951071,13.51831985,82.399,82.375,3.429e-05]
[1771435951263,3.01799331,82.4,82.375,3.429e-05]
[1771435951264,13.51831985,82.389,82.375,3.429e-05]
[1771435952672,10.9292,82.386,82.375,3.429e-05]
[1771435961072,10.9289,82.387,82.375,3.429e-05]
[1771435964580,13.51831985,82.38,82.332,13.17652564]
[1771435964781,16.53639187,82.38,82.332,13.17652564]
[1771435965678,10.9311,82.371,82.333,10.936]
[1771435967379,14.65315685,82.359,82.325,16.03873094]
[1771435968079,14.65315685,82.359,82.325,5.10173094]
[1771435971688,91.11315685,82.367,82.326,13.34799045]
[1771435971888,14.65315685,82.366,82.326,13.34799045]
[1771435972494,10.9321,82.363,82.326,13.34799045]
[1771435972695,14.65315685,82.362,82.326,13.34799045]
[1771435974103,14.65315685,82.385,82.331,13.82883951]
[1771435974405,88.7,82.384,82.341,13.82883951]
[1771435974609,88.7,82.384,82.351,13.82883951]
[1771435975305,88.7,82.384,82.351,36.4111701]
[1771435975504,88.7,82.384,82.351,13.82883951]
[1771435976300,10.9288,82.388,82.351,36.4111701]
[1771435976699,10.9288,82.388,82.352,22.58233059]
[1771435977306,10.9288,82.388,82.353,22.58233059]
[1771435977495,88.8,82.396,82.361,22.58233059]
[1771435977699,10.9276,82.397,82.362,22.58233059]
[1771435978505,21.8483,82.424,82.34,29.92471102]
[1771435978506,13.5161153,82.389,82.357,22.58233059]
[1771435978802,13.5161153,82.389,82.353,22.58233059]
[1771435979502,91.93807202,82.4,82.358,22.58233059]
[1771435979708,16.53418732,82.4,82.362,22.58233059]
[1771435980100,88.96,82.402,82.365,13.90425255]
[1771435980607,88.96,82.402,82.362,22.58233059]
[1771435980801,10.9249,82.418,82.381,13.91130267]
[1771435981203,21.8427,82.445,82.363,22.58233059]
[1771435981204,13.5161153,82.399,82.363,22.58233059]
[1771435981403,13.5161153,82.399,82.362,22.58233059]
[1771435982507,13.5161153,82.396,82.362,22.58233059]
[1771435982709,89.08,82.399,82.363,13.95291595]
[1771435982912,89.1,82.401,82.363,36.53524654]
[1771435983511,89.12,82.408,82.363,36.53524654]
[1771435983711,10.9267,82.405,82.363,36.53524654]
[1771435984509,10.9267,82.405,82.363,13.95291595]
[1771435986314,24.4428153,82.405,82.363,13.95291595]
[1771435990813,24.4428153,82.405,82.36,3.01807202]
[1771435990814,13.5161153,82.404,82.36,3.01807202]
[1771435991017,13.5161153,82.399,82.35,17.22625695]
[1771435991319,24.4435153,82.399,82.361,14.20818493]
[1771435991517,10.9274,82.399,82.361,14.20818493]
[1771435993812,13.5161153,82.391,82.352,10.9335]
[1771435994417,24.4450153,82.387,82.345,25.14258493]
[1771435994616,13.5161153,82.386,82.345,25.14258493]
[1771435998122,10.9294,82.384,82.345,10.9344]
[1771435998716,13.63177412,82.379,82.333,22.58233059]
[1771435998919,16.64984614,82.37,82.327,14.47221891]
[1771435999225,13.63177412,82.384,82.341,14.47254724]
[1771435999426,13.63177412,82.384,82.348,25.40664724]
[1771436002021,13.63177412,82.383,82.336,14.49225954]
[1771436002320,13.63177412,82.383,82.286,36.41]
[1771436002321,16.64984614,82.37,82.325,19.54566078]
[1771436002521,16.64984614,82.37,82.326,14.44392984]
[1771436002917,16.64984614,82.37,82.333,10.936]
[1771436003123,16.64984614,82.37,82.326,14.44392984]
[1771436004824,24.56317412,82.369,82.326,25.38082984]
[1771436005326,13.63177412,82.368,82.326,25.38082984]
[1771436005529,16.64984614,82.36,82.326,10.9369]
[1771436006522,13.63177412,82.36,82.326,10.9369]
[1771436007123,13.63177412,82.358,82.325,5.10173094]
[1771436007332,13.63177412,82.349,82.325,5.10173094]
[1771436007630,3.01807202,82.34,82.325,5.10173094]
[1771436007825,3.01807202,82.34,82.325,3.094e-05]
[1771436009136,10.9343,82.347,82.325,3.094e-05]
[1771436013933,24.56607412,82.347,82.325,3.094e-05]
[1771436014438,13.63177412,82.346,82.325,3.094e-05]
[1771436015131,13.63177412,82.339,82.298,14.46003572]
[1771436015931,16.65325619,82.33,82.288,255.47808927]
[1771436016132,13.63177412,82.319,82.288,255.47808927]
[1771436018432,13.63177412,82.329,82.288,255.47808927]
[1771436018638,3.02148207,82.33,82.289,14.43976845]
[1771436018937,36.41,82.368,82.289,14.43976845]
[1771436018938,16.65325619,82.34,82.289,14.43976845]
[1771436019336,10.9363,82.332,82.294,10.9411]
[1771436020132,10.9363,82.332,82.295,14.40850488]
[1771436020338,10.9354,82.339,82.299,14.40850488]
[1771436021838,90.72,82.348,82.302,14.41771681]
[1771436022238,3.02148207,82.35,82.302,14.41771681]
[1771436022439,3.02148207,82.35,82.303,14.40643336]
[1771436023041,3.02148207,82.34,82.305,10.9397]
[1771436023241,16.65325619,82.34,82.303,14.40643336]
[1771436024842,10.9353,82.339,82.303,14.40643336]
[1771436025633,36.41,82.389,82.288,255.47808927]
[1771436025634,3.02148207,82.32,82.288,10.942]
[1771436026638,14.58282297,82.329,82.288,10.942]
[1771436027636,14.58282297,82.329,82.289,14.26754962]
[1771436027944,14.58282297,82.329,82.291,10.9416]
[1771436028940,14.58282297,82.329,82.291,25.20914962]
[1771436029141,25.51952297,82.329,82.291,25.20914962]
[1771436030446,25.51952297,82.329,82.292,14.26754962]
[1771436031247,10.9374,82.324,82.292,14.26754962]
[1771436031642,10.9374,82.324,82.27,3.02148207]
[1771436031643,3.02148207,82.31,82.277,10.9434]
[1771436031849,17.60430504,82.31,82.277,10.9434]
[1771436034151,14.58282297,82.31,82.277,10.9434]
[1771436035843,3.02148207,82.32,82.277,10.9434]
[1771436036044,17.60430504,82.32,82.277,10.9434]
[1771436036848,17.60430504,82.32,82.283,10.9427]
[1771436038052,10.9374,82.324,82.284,14.43399808]
[1771436040151,10.9382,82.318,82.284,14.43399808]
[1771436042361,24.96907274,82.318,82.284,14.43399808]
[1771436042567,14.03087274,82.309,82.276,10.9436]
[1771436042760,14.03087274,82.309,82.282,10.9429]
[1771436043058,14.03087274,82.319,82.282,10.9429]
[1771436043654,10.9381,82.318,82.282,10.9429]
[1771436046757,14.03087274,82.317,82.282,10.9429]
[1771436048759,10.9388,82.313,82.276,14.75609527]
[1771436049360,14.03087274,82.317,82.279,10.9432]
[1771436052364,10.9385,82.315,82.279,10.9432]
[1771436054871,14.03087274,82.317,82.285,10.9424]
[1771436055471,14.03087274,82.317,82.279,10.9432]
[1771436056573,13.73353737,82.307,82.275,5.10483136]
[1771436057366,13.73353737,82.298,82.255,10.9464]
[1771436057963,13.73353737,82.296,82.261,10.9457]
[1771436059468,13.73353737,82.296,82.251,14.04219529]
[1771436059671,13.73353737,82.289,82.25,76.48]
[1771436060273,13.73353737,82.289,82.24,14.04219529]
[1771436060667,13.73353737,82.287,82.248,10.9474]
[1771436061664,92.52,82.294,82.254,14.04219529]
[1771436062472,10.9423,82.287,82.254,14.04219529]
[1771436062673,13.73353737,82.286,82.248,10.9473]
[1771436063075,3.02148207,82.29,82.248,10.9473]
[1771436063076,13.73353737,82.283,82.248,10.9473]
[1771436064576,11.2868055,82.336,82.239,330.2695535]
[1771436064577,13.73353737,82.268,82.239,253.7895535]
[1771436064777,13.73353737,82.268,82.229,14.04219529]
[1771436064977,13.73353737,82.268,82.231,14.04219529]
[1771436065176,13.73353737,82.268,82.232,14.04219529]
[1771436066478,13.73353737,82.268,82.234,10.9492]
[1771436066671,13.73353737,82.268,82.232,14.04219529]
[1771436066672,10.9439,82.275,82.235,14.04219529]
[1771436067278,238.752502,84.261,82.208,2.11550152]
[1771436067279,13.73353737,82.291,82.244,14.04219529]
[1771436067878,24.67523737,82.291,82.25,14.04219529]
[1771436068278,13.73353737,82.303,82.26,3.02148207]
[1771436068486,13.73353737,82.303,82.261,14.04219529]
[1771436069683,13.73353737,82.303,82.265,10.9451]
[1771436070087,13.73353737,82.299,82.255,76.54]
[1771436070282,13.73353737,82.297,82.255,24.98859529]
[1771436071085,13.73353737,82.297,82.256,14.04219529]
[1771436071280,92.94,82.312,82.251,76.54]
[1771436071281,13.73353737,82.309,82.267,14.04219529]
[1771436071481,13.73353737,82.309,82.27,17.06367736]
[1771436072591,13.73353737,82.309,82.27,14.04219529]
[1771436072886,13.73353737,82.309,82.27,24.98659529]
[1771436075086,13.73353737,82.309,82.275,24.98599529]
[1771436075283,104.1179,82.32,82.28,3.02379508]
[1771436075485,104.1179,82.32,82.281,14.04219529]
[1771436075685,9.05411397,82.342,82.3,17.06599037]
[1771436075686,13.73353737,82.342,82.3,17.06599037]
[1771436076485,13.73353737,82.342,82.3,3.02379508]
[1771436076691,13.73353737,82.336,82.295,10.941]
[1771436078592,13.73353737,82.336,82.295,24.98319529]
[1771436078892,13.73353737,82.336,82.3,10.9405]
[1771436079197,13.73353737,82.35,82.31,17.06599037]
[1771436081591,10.9325,82.361,82.32,13.96159508]
[1771436081792,10.9325,82.361,82.321,14.04219529]
[1771436083189,13.73353737,82.362,82.324,10.9372]
[1771436083491,10.931,82.371,82.33,17.06599037]
[1771436084694,24.66453737,82.371,82.33,17.06599037]
[1771436084902,14.46045146,82.368,82.33,14.04219529]
[1771436086491,14.46045146,82.366,82.32,3.02379508]
[1771436086700,14.46045146,82.359,82.31,3.02379508]
[1771436086897,14.46045146,82.359,82.31,17.07781698]
[1771436087696,14.46045146,82.357,82.313,10.9386]
[1771436087897,14.46045146,82.357,82.3,3.02379508]
[1771436088098,14.46045146,82.349,82.3,3.02379508]
[1771436089594,14.46045146,82.349,82.3,17.07781698]
[1771436089797,25.39485146,82.346,82.305,10.9398]
[1771436090096,14.46045146,82.345,82.305,10.9398]
[1771436091603,14.46045146,82.345,82.313,10.9386]
[1771436091801,14.46045146,82.357,82.314,14.0540219]
[1771436092198,14.46045146,82.357,82.32,3.02379508]
[1771436092397,93.82,82.364,82.331,14.0540219]
[1771436092899,36.41,82.416,82.336,10.9356]
[1771436092900,10.93,82.379,82.336,10.9356]
[1771436093099,10.93,82.379,82.34,3.02379508]
[1771436093494,14.46045146,82.382,82.341,14.0540219]
[1771436093799,5.0,82.385,82.355,10.9331]
[1771436093999,5.0,82.385,82.36,3.02379508]
[1771436094402,14.46045146,82.4,82.36,17.07781698]
[1771436095198,14.46045146,82.4,82.361,10.9323]
[1771436095403,14.46045146,82.413,82.362,14.0540219]
[1771436096893,14.46045146,82.413,82.365,10.9318]
[1771436097297,10.9256,82.412,82.362,14.0540219]
[1771436097597,13.53937992,82.409,82.362,14.0540219]
[1771436098101,13.53937992,82.409,82.363,10.932]
[1771436098305,13.53937992,82.423,82.371,14.02843235]
[1771436098697,13.53937992,82.42,82.374,10.9306]
[1771436099206,16.563175,82.42,82.374,10.9306]
[1771436100101,13.53937992,82.42,82.374,24.95903235]
[1771436100298,13.53937992,82.432,82.39,17.05222743]
[1771436100507,13.53937992,82.448,82.4,17.05222743]
[1771436100700,13.53937992,82.434,82.39,3.02379508]
[1771436100897,13.53937992,82.419,82.37,3.02379508]
[1771436101201,13.53937992,82.419,82.37,17.05222743]
[1771436101897,13.53937992,82.419,82.371,24.95943235]
[1771436102505,10.9232,82.431,82.381,14.02843235]
[1771436102909,24.46257992,82.431,82.381,14.02843235]
[1771436103107,13.53937992,82.43,82.381,14.02843235]
[1771436103809,13.53937992,82.43,82.383,10.9294]
[1771436104009,16.563175,82.43,82.383,10.9294]
[1771436104210,13.53937992,82.427,82.381,14.02843235]
[1771436105701,3.02379508,82.42,82.37,3.02379508]
[1771436105914,13.53937992,82.419,82.366,14.02843235]
[1771436106112,13.53937992,82.419,82.37,17.05222743]
[1771436106407,13.53937992,82.419,82.381,14.02843235]
[1771436106605,13.53937992,82.419,82.346,76.46]
[1771436106606,13.53937992,82.419,82.347,14.02843235]
[1771436106801,13.53937992,82.417,82.374,10.9305]
[1771436108012,3.02379508,82.42,82.37,3.02379508]
[1771436108013,24.46467992,82.415,82.37,3.02379508]
[1771436108308,13.53937992,82.409,82.369,14.02843235]
[1771436108505,13.53937992,82.407,82.36,3.02379508]
[1771436109511,13.53937992,82.407,82.368,10.9314]
[1771436109814,13.53937992,82.407,82.368,24.95983235]
[1771436110612,10.9254,82.414,82.372,10.9308]
[1771436110811,10.9256,82.412,82.372,10.9308]
[1771436111014,13.53937992,82.411,82.372,10.9308]
[1771436111214,13.53937992,82.411,82.369,14.02843235]
[1771436111414,10.9271,82.401,82.356,14.02843235]
[1771436111621,16.563175,82.4,82.356,14.02843235]
[1771436111920,16.563175,82.4,82.351,61.0]
[1771436112118,13.53937992,82.396,82.351,61.0]
[1771436112421,13.53937992,82.396,82.343,14.02843235]
[1771436112620,13.53937992,82.396,82.35,3.02379508]
[1771436113117,13.53937992,82.396,82.341,61.0]
[1771436113118,3.02379508,82.42,82.37,3.02379508]
[1771436113323,13.53937992,82.422,82.381,14.02843235]
[1771436114818,13.53937992,82.422,82.383,10.9294]
[1771436116320,13.53937992,82.422,82.381,14.02843235]
[1771436116924,13.53937992,82.422,82.381,24.95803235]
[1771436119421,10.9242,82.423,82.381,24.95803235]
[1771436119422,17.21776788,82.42,82.381,24.95803235]
[1771436120527,25.1186728,82.419,82.381,14.02843235]
[1771436120728,17.21776788,82.4,82.356,13.78124156]
[1771436120928,14.1939728,82.389,82.343,13.78124156]
[1771436121430,3.02379508,82.4,82.352,13.78124156]
[1771436121624,90.6339728,82.416,82.352,13.78124156]
[1771436121625,17.21776788,82.41,82.352,13.78124156]
[1771436121929,10.9276,82.397,82.359,13.78124156]
[1771436122429,17.21776788,82.4,82.359,13.78124156]
[1771436122630,13.95229508,82.39,82.345,13.78124156]
[1771436123522,13.95229508,82.39,82.352,10.9335]
[1771436125030,14.1939728,82.388,82.345,13.78124156]
[1771436125222,17.21776788,82.38,82.331,13.78124156]
[1771436126623,10.9291,82.387,82.341,13.78124156]
[1771436127829,10.9291,82.387,82.347,10.9342]
[1771436128623,25.1235728,82.383,82.341,13.78124156]
[1771436128823,76.44,82.412,82.34,10.9351]
[1771436128824,14.1939728,82.379,82.34,10.9351]
[1771436130328,10.929,82.387,82.341,13.78124156]
[1771436131834,10.929,82.387,82.346,13.78124156]
[1771436132727,10.929,82.387,82.347,10.9341]
[1771436132933,10.929,82.387,82.348,13.78124156]
[1771436133732,14.1939728,82.392,82.354,24.71444156]
[1771436133942,14.1939728,82.392,82.355,13.78124156]
[1771436134838,14.1939728,82.392,82.357,10.9329]
[1771436135228,14.1939728,82.392,82.355,13.78124156]
[1771436135229,3.01767659,82.39,82.355,13.78124156]
[1771436136536,3.01767659,82.39,82.297,37.59757263]
[1771436136537,14.1939728,82.392,82.357,13.78124156]
[1771436136737,3.01767659,82.4,82.357,13.78124156]
[1771436136932,14.1939728,82.404,82.364,10.9318]
[1771436137236,14.1939728,82.416,82.365,13.78124156]
[1771436138541,14.1939728,82.416,82.379,10.93]
[1771436141242,14.1939728,82.416,82.38,13.78124156]
[1771436143044,92.76,82.449,82.38,13.78124156]
[1771436143045,10.9237,82.427,82.386,13.78124156]
[1771436143242,14.1939728,82.429,82.386,13.78124156]
[1771436143443,10.9235,82.428,82.387,24.71004156]
[1771436145239,10.9235,82.428,82.388,14.61812021]
[1771436146344,10.9223,82.437,82.394,14.61596206]
[1771436147746,10.9223,82.437,82.398,14.61355165]
[1771436148342,14.9424318,82.442,82.405,14.64862623]
[1771436148546,10.9211,82.447,82.405,14.64862623]
[1771436149647,10.9211,82.447,82.406,10.9264]
[1771436149941,10.9211,82.447,82.407,14.64862623]
[1771436150846,14.9424318,82.477,82.431,14.64862623]
[1771436151241,9.04050708,82.521,82.41,3.01767659]
[1771436151242,14.9424318,82.457,82.41,3.01767659]
[1771436152348,14.9424318,82.453,82.412,10.9255]
[1771436152549,14.9424318,82.453,82.42,3.01767659]
[1771436153146,14.9424318,82.453,82.413,14.35652319]
[1771436153347,14.9424318,82.469,82.413,14.35652319]
[1771436153850,14.9424318,82.469,82.41,3.01767659]
[1771436153851,10.9191,82.462,82.416,14.35444377]
[1771436154150,25.8615318,82.462,82.42,3.01767659]
[1771436154549,14.9424318,82.479,82.432,14.24314241]
[1771436154749,14.9424318,82.479,82.42,3.01767659]
[1771436155253,14.9424318,82.459,82.402,14.24214479]
[1771436155753,3.01767659,82.46,82.403,10.9267]
[1771436155754,14.9424318,82.447,82.403,10.9267]
[1771436157459,14.9424318,82.447,82.415,10.9251]
[1771436158054,14.9424318,82.447,82.41,3.01767659]
[1771436158359,14.9424318,82.447,82.408,10.9261]
[1771436158959,14.9424318,82.447,82.41,3.01767659]
[1771436160256,14.9424318,82.447,82.411,10.9257]
[1771436160452,14.24032188,82.465,82.42,3.01767659]
[1771436161859,10.919,82.462,82.42,13.94217659]
[1771436162060,25.15932188,82.462,82.42,13.94217659]
[1771436162262,14.24032188,82.461,82.42,13.94217659]
[1771436164064,14.24032188,82.461,82.42,3.01767659]
[1771436164956,14.24032188,82.461,82.414,14.18226094]
[1771436165154,14.24032188,82.452,82.414,14.18226094]
[1771436165649,14.24032188,82.452,82.41,3.01767659]
[1771436165861,14.24032188,82.448,82.403,10.9267]
[1771436166251,14.24032188,82.448,82.409,10.926]
[1771436166451,14.24032188,82.448,82.41,14.224234]
[1771436166763,14.24032188,82.448,82.41,17.24191059]
[1771436167660,14.24032188,82.448,82.411,10.9257]
[1771436168157,14.24032188,82.459,82.41,17.24191059]
[1771436168461,14.24032188,82.456,82.417,10.9249]
[1771436172865,10.9199,82.455,82.417,10.9249]
[1771436173064,14.24032188,82.454,82.417,10.9249]
[1771436175466,14.24032188,82.454,82.411,10.9257]
[1771436175467,10.9202,82.453,82.411,10.9257]
[1771436175766,14.51433634,82.452,82.411,10.9257]
[1771436175961,14.51433634,82.452,82.411,25.22878706]
[1771436176263,14.51433634,82.452,82.416,10.925]
[1771436181567,14.51433634,82.449,82.401,61.0]
[1771436181771,3.01767659,82.45,82.402,14.44215147]
[1771436181772,14.51433634,82.442,82.402,14.44215147]
[1771436183165,76.4,82.479,82.395,76.4]
[1771436183166,14.51433634,82.468,82.411,14.43534699]